[Event "Early-Titled-Tuesday-Blitz-April-02-2024"]
[Site "Chess.com"]
[Date "2024.04.02"]
[Round "1"]
[White "Irina_Mikhaylova"]
[Black "krstulov_alex"]
[Result "0-1"]
[WhiteElo "2340"]
[BlackElo "2648"]
[TimeControl "180+1"]
[EndTime "8:06:52 PDT"]
[Termination "krstulov_alex won by resignation"]

1. d4 {[%clk 0:03:00.9]} 1... Nf6 {[%clk 0:02:57.8]} 2. Nf3 {[%clk 0:03:00.7]}
2... g6 {[%clk 0:02:57.6]} 3. c4 {[%clk 0:03:00.9]} 3... Bg7 {[%clk 0:02:58]} 4.
Nc3 {[%clk 0:03:01.3]} 4... c5 {[%clk 0:02:57.3]} 5. e4 {[%clk 0:02:59.9]} 5...
cxd4 {[%clk 0:02:55.2]} 6. Nxd4 {[%clk 0:03:00]} 6... O-O {[%clk 0:02:56.1]} 7.
Be2 {[%clk 0:03:00]} 7... Nc6 {[%clk 0:02:56.7]} 8. Be3 {[%clk 0:03:00]} 8... d6
{[%clk 0:02:57.3]} 9. O-O {[%clk 0:03:00]} 9... Nxd4 {[%clk 0:02:53.8]} 10. Bxd4
{[%clk 0:03:00]} 10... Be6 {[%clk 0:02:54.5]} 11. Qd2 {[%clk 0:02:57.9]} 11...
Nd7 {[%clk 0:02:53.8]} 12. Rac1 {[%clk 0:02:52.7]} 12... Bxd4 {[%clk 0:02:50.9]}
13. Qxd4 {[%clk 0:02:53.6]} 13... Qb6 {[%clk 0:02:51.4]} 14. Qxb6 {[%clk
0:02:48.1]} 14... Nxb6 {[%clk 0:02:49.7]} 15. b3 {[%clk 0:02:48.4]} 15... Rac8
{[%clk 0:02:49.2]} 16. Rfd1 {[%clk 0:02:48.5]} 16... Rfe8 {[%clk 0:02:49.3]} 17.
f3 {[%clk 0:02:48.6]} 17... Nd7 {[%clk 0:02:45.9]} 18. Kf2 {[%clk 0:02:48.9]}
18... g5 {[%clk 0:02:45.8]} 19. Ke3 {[%clk 0:02:49]} 19... Ne5 {[%clk
0:02:45.4]} 20. g3 {[%clk 0:02:49.3]} 20... h6 {[%clk 0:02:41.4]} 21. f4 {[%clk
0:02:36.5]} 21... Ng4+ {[%clk 0:02:14.5]} 22. Bxg4 {[%clk 0:02:32.5]} 22... Bxg4
{[%clk 0:02:15.4]} 23. Rd2 {[%clk 0:02:29.9]} 23... f6 {[%clk 0:02:04.9]} 24.
Nd5 {[%clk 0:02:11.9]} 24... Be6 {[%clk 0:01:42.1]} 25. Rdc2 {[%clk 0:02:06.9]}
25... f5 {[%clk 0:01:33.8]} 26. Rc3 {[%clk 0:01:50.3]} 26... fxe4 {[%clk
0:01:28.8]} 27. Kxe4 {[%clk 0:01:50.5]} 27... Rc5 {[%clk 0:01:29]} 28. Ne3
{[%clk 0:01:24.4]} 28... a5 {[%clk 0:01:12.3]} 29. f5 {[%clk 0:01:18.1]} 29...
Bd7 {[%clk 0:00:45.3]} 30. Nd5 {[%clk 0:01:18.2]} 30... Kg7 {[%clk 0:00:44.6]}
31. a3 {[%clk 0:01:04.9]} 31... Bxf5+ {[%clk 0:00:33.9]} 32. Kxf5 {[%clk
0:01:05]} 32... e6+ {[%clk 0:00:34.8]} 33. Kg4 {[%clk 0:01:04.1]} 33... exd5
{[%clk 0:00:35.3]} 34. cxd5 {[%clk 0:01:04.8]} 34... Rxd5 {[%clk 0:00:32.7]} 35.
Rc7+ {[%clk 0:01:04.1]} 35... Kg6 {[%clk 0:00:30.8]} 36. Rxb7 {[%clk 0:01:04.2]}
36... Rd3 {[%clk 0:00:26.3]} 37. h4 {[%clk 0:01:01]} 37... Re4+ {[%clk 0:00:26]}
38. Kh3 {[%clk 0:01:01.1]} 38... g4+ {[%clk 0:00:21.3]} 39. Kg2 {[%clk
0:01:01.4]} 39... Re2+ {[%clk 0:00:22.2]} 40. Kf1 {[%clk 0:01:01.3]} 40... Rb2
{[%clk 0:00:23.1]} 41. b4 {[%clk 0:00:49.7]} 41... Rf3+ {[%clk 0:00:21.5]} 42.
Ke1 {[%clk 0:00:45.1]} 42... Rxg3 {[%clk 0:00:22.4]} 43. Kf1 {[%clk 0:00:45.4]}
43... Rf3+ {[%clk 0:00:22.5]} 44. Ke1 {[%clk 0:00:45.5]} 44... Rh3 {[%clk
0:00:22.8]} 0-1

[Event "Early-Titled-Tuesday-Blitz-April-02-2024"]
[Site "Chess.com"]
[Date "2024.04.02"]
[Round "1"]
[White "Rurep26"]
[Black "Road2GM3000"]
[Result "1-0"]
[WhiteElo "2725"]
[BlackElo "2424"]
[TimeControl "180+1"]
[EndTime "8:06:53 PDT"]
[Termination "Rurep26 won by resignation"]

1. d4 {[%clk 0:03:00.9]} 1... d5 {[%clk 0:02:58.1]} 2. Bf4 {[%clk 0:03:01.2]}
2... Nf6 {[%clk 0:02:56.8]} 3. e3 {[%clk 0:03:01.6]} 3... c6 {[%clk 0:02:57.1]}
4. Nd2 {[%clk 0:03:01.7]} 4... Qb6 {[%clk 0:02:52.6]} 5. Rb1 {[%clk 0:03:00.8]}
5... Bf5 {[%clk 0:02:52.4]} 6. Bd3 {[%clk 0:03:00.3]} 6... e6 {[%clk 0:02:44.4]}
7. Bxf5 {[%clk 0:02:59.3]} 7... exf5 {[%clk 0:02:45.3]} 8. Ngf3 {[%clk
0:02:58.1]} 8... Be7 {[%clk 0:02:43.1]} 9. O-O {[%clk 0:02:58.4]} 9... O-O
{[%clk 0:02:42.4]} 10. c4 {[%clk 0:02:59.3]} 10... Nbd7 {[%clk 0:02:38.3]} 11.
Qc2 {[%clk 0:02:58.6]} 11... Ne4 {[%clk 0:02:37.3]} 12. b4 {[%clk 0:02:58.2]}
12... Ndf6 {[%clk 0:02:30.8]} 13. Ne5 {[%clk 0:02:50.2]} 13... Nxd2 {[%clk
0:02:26.8]} 14. Qxd2 {[%clk 0:02:51.1]} 14... Ne4 {[%clk 0:02:27.2]} 15. Qc2
{[%clk 0:02:50.4]} 15... Qd8 {[%clk 0:02:20.5]} 16. f3 {[%clk 0:02:46.3]} 16...
Nd6 {[%clk 0:02:18.1]} 17. c5 {[%clk 0:02:46.1]} 17... Nb5 {[%clk 0:02:11.7]}
18. Qxf5 {[%clk 0:02:43.7]} 18... Bf6 {[%clk 0:02:01.7]} 19. Nd7 {[%clk
0:02:37.9]} 19... Re8 {[%clk 0:01:59.2]} 20. Nxf6+ {[%clk 0:02:37.6]} 20... Qxf6
{[%clk 0:01:58.1]} 21. Qxf6 {[%clk 0:02:37.7]} 21... gxf6 {[%clk 0:01:59]} 22.
Rb2 {[%clk 0:02:12.3]} 22... a5 {[%clk 0:01:57.3]} 23. a4 {[%clk 0:02:03.3]}
23... Nc3 {[%clk 0:01:57.2]} 24. bxa5 {[%clk 0:02:03.8]} 24... Rxa5 {[%clk
0:01:53]} 25. Rc1 {[%clk 0:01:52]} 25... Nxa4 {[%clk 0:01:49.5]} 26. Rxb7 {[%clk
0:01:47.3]} 26... Kg7 {[%clk 0:01:25.6]} 27. g4 {[%clk 0:01:41.8]} 27... Kg6
{[%clk 0:01:18.7]} 28. Kg2 {[%clk 0:01:40.4]} 28... h5 {[%clk 0:01:18.9]} 29. h3
{[%clk 0:01:40.2]} 29... hxg4 {[%clk 0:01:19.2]} 30. hxg4 {[%clk 0:01:41.1]}
30... Rh8 {[%clk 0:01:16]} 31. Rc2 {[%clk 0:01:29.3]} 31... Nc3 {[%clk
0:01:06.3]} 32. Rxc3 {[%clk 0:01:09.8]} 32... Ra2+ {[%clk 0:01:06.5]} 33. Kg3
{[%clk 0:01:10.4]} 33... Rhh2 {[%clk 0:01:05.7]} 34. Bd6 {[%clk 0:01:07.4]}
34... Kg5 {[%clk 0:01:00.2]} 35. f4+ {[%clk 0:01:06.4]} 35... Kg6 {[%clk
0:01:00.8]} 36. f5+ {[%clk 0:01:06.5]} 36... Kg7 {[%clk 0:00:55.7]} 37. e4
{[%clk 0:01:02.7]} 37... Rag2+ {[%clk 0:00:46.8]} 38. Kf4 {[%clk 0:01:02.2]}
38... Rf2+ {[%clk 0:00:47.2]} 39. Rf3 {[%clk 0:01:00.4]} 39... Re2 {[%clk
0:00:25.7]} 40. Re7 {[%clk 0:00:43.6]} 40... Rhg2 {[%clk 0:00:22.7]} 41. exd5
{[%clk 0:00:41.1]} 41... cxd5 {[%clk 0:00:18.5]} 42. Rxe2 {[%clk 0:00:40]} 42...
Rxe2 {[%clk 0:00:19.4]} 43. Rd3 {[%clk 0:00:38.5]} 1-0

[Event "Early-Titled-Tuesday-Blitz-April-02-2024"]
[Site "Chess.com"]
[Date "2024.04.02"]
[Round "1"]
[White "edgarhay012"]
[Black "Shiner22"]
[Result "1-0"]
[WhiteElo "2630"]
[BlackElo "2305"]
[TimeControl "180+1"]
[EndTime "8:06:53 PDT"]
[Termination "edgarhay012 won by resignation"]

1. e4 {[%clk 0:03:00.9]} 1... c5 {[%clk 0:02:58.5]} 2. Nc3 {[%clk 0:03:01.3]}
2... Nc6 {[%clk 0:02:58.6]} 3. Bb5 {[%clk 0:03:01.4]} 3... Nd4 {[%clk
0:02:58.7]} 4. Bc4 {[%clk 0:03:02]} 4... g6 {[%clk 0:02:59.1]} 5. Nf3 {[%clk
0:03:01.4]} 5... Bg7 {[%clk 0:02:59]} 6. Nxd4 {[%clk 0:03:01.7]} 6... cxd4
{[%clk 0:02:59.3]} 7. Ne2 {[%clk 0:03:02.1]} 7... d6 {[%clk 0:02:49.5]} 8. d3
{[%clk 0:03:01]} 8... a6 {[%clk 0:02:47.4]} 9. O-O {[%clk 0:03:00.4]} 9... Rb8
{[%clk 0:02:31.9]} 10. a4 {[%clk 0:02:59.2]} 10... b5 {[%clk 0:02:28.4]} 11.
axb5 {[%clk 0:03:00.1]} 11... axb5 {[%clk 0:02:28.6]} 12. Bb3 {[%clk 0:03:00.4]}
12... Qb6 {[%clk 0:02:24.9]} 13. Bd2 {[%clk 0:03:00.3]} 13... Nf6 {[%clk
0:02:23.5]} 14. Ba5 {[%clk 0:02:57.9]} 14... Qc5 {[%clk 0:02:15.4]} 15. h3
{[%clk 0:02:31.2]} 15... O-O {[%clk 0:02:13.7]} 16. Qe1 {[%clk 0:02:31.4]} 16...
b4 {[%clk 0:02:00.6]} 17. Ra4 {[%clk 0:02:30.9]} 17... Qh5 {[%clk 0:01:51.8]}
18. Ng3 {[%clk 0:02:09.8]} 18... Qg5 {[%clk 0:01:46.7]} 19. Bxb4 {[%clk
0:02:04]} 19... h5 {[%clk 0:01:40.4]} 20. Ra5 {[%clk 0:02:03.6]} 20... e5 {[%clk
0:01:30.6]} 21. Bxd6 {[%clk 0:01:57.2]} 21... Bxh3 {[%clk 0:01:27]} 22. gxh3
{[%clk 0:01:34.4]} 22... Nd7 {[%clk 0:00:44.2]} 23. f4 {[%clk 0:01:17.9]} 23...
Qd8 {[%clk 0:00:43.5]} 24. fxe5 {[%clk 0:01:12.3]} 24... Rxb3 {[%clk 0:00:33.3]}
25. cxb3 {[%clk 0:01:09.9]} 25... Re8 {[%clk 0:00:32.7]} 26. Qf2 {[%clk
0:01:01.6]} 26... f5 {[%clk 0:00:20]} 27. Rd5 {[%clk 0:00:43.9]} 27... Bh6
{[%clk 0:00:19.8]} 28. Kh1 {[%clk 0:00:43.1]} 28... Be3 {[%clk 0:00:19.1]} 29.
Qg2 {[%clk 0:00:42.9]} 29... Nf8 {[%clk 0:00:17.6]} 30. Nxf5 {[%clk 0:00:42.3]}
30... Qg5 {[%clk 0:00:15.2]} 31. Qxg5 {[%clk 0:00:35.9]} 31... Bxg5 {[%clk
0:00:15.2]} 32. Nxd4 {[%clk 0:00:36.6]} 32... Nh7 {[%clk 0:00:13.8]} 33. e6
{[%clk 0:00:33.6]} 33... Be3 {[%clk 0:00:13.5]} 34. e7 {[%clk 0:00:33.6]} 34...
Kg7 {[%clk 0:00:12.7]} 35. Ne6+ {[%clk 0:00:32.6]} 35... Kh6 {[%clk 0:00:12.2]}
36. Nc7 {[%clk 0:00:32.1]} 36... Rc8 {[%clk 0:00:11.1]} 37. e8=Q {[%clk
0:00:31.3]} 1-0

[Event "Early-Titled-Tuesday-Blitz-April-02-2024"]
[Site "Chess.com"]
[Date "2024.04.02"]
[Round "1"]
[White "vladislavkovalev"]
[Black "Noki102"]
[Result "1-0"]
[WhiteElo "2881"]
[BlackElo "2504"]
[TimeControl "180+1"]
[EndTime "8:06:54 PDT"]
[Termination "vladislavkovalev won by resignation"]

1. e4 {[%clk 0:03:00.9]} 1... e5 {[%clk 0:02:59.7]} 2. Nf3 {[%clk 0:03:01.1]}
2... Nc6 {[%clk 0:02:59]} 3. Bb5 {[%clk 0:03:01.5]} 3... a6 {[%clk 0:02:57.9]}
4. Ba4 {[%clk 0:03:01.9]} 4... Bc5 {[%clk 0:02:57.5]} 5. c3 {[%clk 0:02:59.2]}
5... Nge7 {[%clk 0:02:56.3]} 6. d4 {[%clk 0:02:59]} 6... Ba7 {[%clk 0:02:56.5]}
7. Nxe5 {[%clk 0:02:38.4]} 7... Nxe5 {[%clk 0:02:54.8]} 8. dxe5 {[%clk
0:02:39.3]} 8... Ng6 {[%clk 0:02:51.1]} 9. Qh5 {[%clk 0:02:36.8]} 9... Qe7
{[%clk 0:02:43.9]} 10. f4 {[%clk 0:02:17.3]} 10... O-O {[%clk 0:02:10.7]} 11. g3
{[%clk 0:01:37.8]} 11... d6 {[%clk 0:02:05.2]} 12. Bb3 {[%clk 0:01:38.5]} 12...
dxe5 {[%clk 0:01:24.6]} 13. f5 {[%clk 0:01:38.7]} 13... Nh8 {[%clk 0:01:23.5]}
14. Bg5 {[%clk 0:01:27.9]} 14... Qc5 {[%clk 0:01:20]} 15. Qe2 {[%clk 0:01:21]}
15... h6 {[%clk 0:01:05.3]} 16. h4 {[%clk 0:01:14.1]} 16... hxg5 {[%clk
0:00:56.8]} 17. hxg5 {[%clk 0:01:15]} 17... Qe3 {[%clk 0:00:56.7]} 18. g6 {[%clk
0:00:23.7]} 18... b5 {[%clk 0:00:29.8]} 19. Nd2 {[%clk 0:00:16.4]} 19... Bb7
{[%clk 0:00:24.2]} 20. Kf1 {[%clk 0:00:10.3]} 20... Qxe2+ {[%clk 0:00:18]} 21.
Kxe2 {[%clk 0:00:11.2]} 21... c5 {[%clk 0:00:09.5]} 22. Rxh8+ {[%clk 0:00:10]}
22... Kxh8 {[%clk 0:00:09.3]} 23. Bxf7 {[%clk 0:00:10.7]} 23... Rxf7 {[%clk
0:00:07.1]} 24. gxf7 {[%clk 0:00:11.6]} 24... g6 {[%clk 0:00:07.5]} 25. f6
{[%clk 0:00:12.2]} 25... Bxe4 {[%clk 0:00:04.5]} 26. Nxe4 {[%clk 0:00:12.4]} 1-0

[Event "Early-Titled-Tuesday-Blitz-April-02-2024"]
[Site "Chess.com"]
[Date "2024.04.02"]
[Round "1"]
[White "VD_coach"]
[Black "Dewarfd"]
[Result "1-0"]
[WhiteElo "2571"]
[BlackElo "2125"]
[TimeControl "180+1"]
[EndTime "8:06:54 PDT"]
[Termination "VD_coach won on time"]

1. d4 {[%clk 0:03:00.9]} 1... Nf6 {[%clk 0:02:57.1]} 2. Nf3 {[%clk 0:03:01.5]}
2... g6 {[%clk 0:02:56.3]} 3. c4 {[%clk 0:03:02]} 3... Bg7 {[%clk 0:02:55.5]} 4.
g3 {[%clk 0:03:02.3]} 4... c6 {[%clk 0:02:54]} 5. Bg2 {[%clk 0:03:02.6]} 5...
O-O {[%clk 0:02:53.4]} 6. O-O {[%clk 0:03:00.6]} 6... d5 {[%clk 0:02:53.5]} 7.
cxd5 {[%clk 0:02:54.6]} 7... cxd5 {[%clk 0:02:52.2]} 8. Nc3 {[%clk 0:02:55.5]}
8... Nc6 {[%clk 0:02:50.2]} 9. Ne5 {[%clk 0:02:54]} 9... Be6 {[%clk 0:02:40.4]}
10. Bf4 {[%clk 0:02:52.6]} 10... Nh5 {[%clk 0:02:36.8]} 11. Nxc6 {[%clk
0:02:46.8]} 11... bxc6 {[%clk 0:02:36.4]} 12. Be3 {[%clk 0:02:45.4]} 12... Nf6
{[%clk 0:02:34.6]} 13. h3 {[%clk 0:02:45.2]} 13... Bf5 {[%clk 0:02:26]} 14. Rc1
{[%clk 0:02:43.8]} 14... Re8 {[%clk 0:02:14.2]} 15. Bf4 {[%clk 0:02:36]} 15...
Nd7 {[%clk 0:02:05.8]} 16. e4 {[%clk 0:02:31.8]} 16... dxe4 {[%clk 0:01:45.1]}
17. Nxe4 {[%clk 0:02:32.7]} 17... Qb6 {[%clk 0:01:06.1]} 18. d5 {[%clk
0:01:12.6]} 18... cxd5 {[%clk 0:00:55.6]} 19. Qxd5 {[%clk 0:01:13.5]} 19... Be6
{[%clk 0:00:43.1]} 20. Qc6 {[%clk 0:01:00.4]} 20... Bxb2 {[%clk 0:00:33.9]} 21.
Qxb6 {[%clk 0:00:46.8]} 21... axb6 {[%clk 0:00:31.9]} 22. Rc7 {[%clk 0:00:46.6]}
22... Rxa2 {[%clk 0:00:26.8]} 23. Ng5 {[%clk 0:00:46.7]} 23... Nc5 {[%clk
0:00:20]} 24. Rc6 {[%clk 0:00:43.1]} 24... Bc4 {[%clk 0:00:17.1]} 25. Re1 {[%clk
0:00:35.8]} 25... b5 {[%clk 0:00:15.7]} 26. Rxc5 {[%clk 0:00:31.2]} 26... Bd4
{[%clk 0:00:14.1]} 27. Be3 {[%clk 0:00:31]} 27... Bxc5 {[%clk 0:00:10.8]} 28.
Bxc5 {[%clk 0:00:31.9]} 28... h6 {[%clk 0:00:10]} 29. Ne4 {[%clk 0:00:32]} 29...
Rea8 {[%clk 0:00:04.6]} 30. Bxe7 {[%clk 0:00:29.7]} 30... Ra1 {[%clk 0:00:03.7]}
31. Nf6+ {[%clk 0:00:27.5]} 1-0

[Event "Early-Titled-Tuesday-Blitz-April-02-2024"]
[Site "Chess.com"]
[Date "2024.04.02"]
[Round "1"]
[White "Vahe_Danielyan"]
[Black "Alenzer"]
[Result "1-0"]
[WhiteElo "2583"]
[BlackElo "2183"]
[TimeControl "180+1"]
[EndTime "8:06:56 PDT"]
[Termination "Vahe_Danielyan won by resignation"]

1. Nf3 {[%clk 0:03:00.9]} 1... d5 {[%clk 0:02:59.1]} 2. g3 {[%clk 0:03:01.4]}
2... c5 {[%clk 0:02:57.8]} 3. Bg2 {[%clk 0:03:01.6]} 3... Nc6 {[%clk 0:02:58.4]}
4. d4 {[%clk 0:03:01.3]} 4... e6 {[%clk 0:02:57.6]} 5. O-O {[%clk 0:03:01]} 5...
Nf6 {[%clk 0:02:57.9]} 6. c4 {[%clk 0:03:01.5]} 6... Be7 {[%clk 0:02:54.8]} 7.
cxd5 {[%clk 0:02:56.9]} 7... exd5 {[%clk 0:02:53.6]} 8. Nc3 {[%clk 0:02:57.3]}
8... O-O {[%clk 0:02:53]} 9. Bg5 {[%clk 0:02:47.1]} 9... h6 {[%clk 0:02:51.1]}
10. Bxf6 {[%clk 0:02:42.9]} 10... Bxf6 {[%clk 0:02:52]} 11. dxc5 {[%clk
0:02:43.6]} 11... Be6 {[%clk 0:02:36.2]} 12. Rc1 {[%clk 0:02:42.5]} 12... Qa5
{[%clk 0:02:29.5]} 13. Qd2 {[%clk 0:02:24.8]} 13... Qxc5 {[%clk 0:02:12.6]} 14.
Ne4 {[%clk 0:02:21.8]} 14... Qe7 {[%clk 0:02:12.3]} 15. Nxf6+ {[%clk 0:02:22.4]}
15... Qxf6 {[%clk 0:02:12.3]} 16. Rfd1 {[%clk 0:02:23.3]} 16... Rfd8 {[%clk
0:02:08.6]} 17. Nd4 {[%clk 0:02:21.5]} 17... Rac8 {[%clk 0:01:57.6]} 18. e3
{[%clk 0:02:01.6]} 18... a6 {[%clk 0:01:48.3]} 19. b3 {[%clk 0:01:46.5]} 19...
Ne7 {[%clk 0:01:38.7]} 20. Qb4 {[%clk 0:01:39.7]} 20... b5 {[%clk 0:01:30.6]}
21. Qa5 {[%clk 0:01:29.9]} 21... Bg4 {[%clk 0:01:29.9]} 22. Re1 {[%clk
0:01:29.6]} 22... Rxc1 {[%clk 0:01:24.7]} 23. Rxc1 {[%clk 0:01:30.5]} 23... Rc8
{[%clk 0:01:25.3]} 24. Rxc8+ {[%clk 0:01:26.7]} 24... Bxc8 {[%clk 0:01:22.4]}
25. Qd8+ {[%clk 0:01:25.6]} 25... Kh7 {[%clk 0:01:22.5]} 26. Bxd5 {[%clk
0:01:16.6]} 26... Bh3 {[%clk 0:01:03.6]} 27. Be4+ {[%clk 0:01:08.7]} 27... g6
{[%clk 0:01:01.8]} 28. Bg2 {[%clk 0:01:01.7]} 28... Bxg2 {[%clk 0:00:51.2]} 29.
Kxg2 {[%clk 0:01:02.6]} 29... Qe5 {[%clk 0:00:48.2]} 30. Qa8 {[%clk 0:01:02.2]}
30... Qd6 {[%clk 0:00:44.3]} 31. Qf3 {[%clk 0:00:48.6]} 31... Nd5 {[%clk
0:00:34.5]} 32. Qxf7+ {[%clk 0:00:46.8]} 32... Kh8 {[%clk 0:00:34.7]} 33. Ne6
{[%clk 0:00:42]} 33... Qe7 {[%clk 0:00:32.3]} 34. Qxe7 {[%clk 0:00:33.6]} 34...
Nxe7 {[%clk 0:00:32.3]} 35. Nc7 {[%clk 0:00:34.5]} 35... Nc6 {[%clk 0:00:23.8]}
36. Nxa6 {[%clk 0:00:34.6]} 36... Kg7 {[%clk 0:00:24.6]} 37. Kf3 {[%clk
0:00:33.5]} 37... Kf6 {[%clk 0:00:25.1]} 38. Ke4 {[%clk 0:00:33.9]} 38... Ke6
{[%clk 0:00:25.3]} 39. Nc5+ {[%clk 0:00:34.6]} 39... Kd6 {[%clk 0:00:24.3]} 40.
Nd3 {[%clk 0:00:35.5]} 1-0

[Event "Early-Titled-Tuesday-Blitz-April-02-2024"]
[Site "Chess.com"]
[Date "2024.04.02"]
[Round "1"]
[White "chess_blitz00"]
[Black "Hikaru"]
[Result "0-1"]
[WhiteElo "2551"]
[BlackElo "3264"]
[TimeControl "180+1"]
[EndTime "8:06:58 PDT"]
[Termination "Hikaru won on time"]

1. e4 {[%clk 0:03:00.9]} 1... a6 {[%clk 0:02:58.4]} 2. d4 {[%clk 0:02:59.1]}
2... e6 {[%clk 0:02:58.1]} 3. Nc3 {[%clk 0:02:58.7]} 3... d5 {[%clk 0:02:57.1]}
4. exd5 {[%clk 0:02:56.7]} 4... exd5 {[%clk 0:02:57.1]} 5. Bd3 {[%clk
0:02:57.2]} 5... c6 {[%clk 0:02:57.1]} 6. Bf4 {[%clk 0:02:55]} 6... Bd6 {[%clk
0:02:49.7]} 7. Nge2 {[%clk 0:02:08.8]} 7... Bxf4 {[%clk 0:02:38.7]} 8. Nxf4
{[%clk 0:02:08.1]} 8... Qf6 {[%clk 0:02:39.6]} 9. Nfe2 {[%clk 0:01:56.4]} 9...
Ne7 {[%clk 0:02:33.8]} 10. Qd2 {[%clk 0:01:54.1]} 10... Bf5 {[%clk 0:02:32.1]}
11. Bxf5 {[%clk 0:01:38.9]} 11... Nxf5 {[%clk 0:02:33]} 12. Qf4 {[%clk 0:01:28]}
12... Nd7 {[%clk 0:02:24.8]} 13. O-O-O {[%clk 0:01:10.4]} 13... O-O-O {[%clk
0:02:21.2]} 14. Ng3 {[%clk 0:01:01.6]} 14... Nh4 {[%clk 0:02:20.3]} 15. Qxf6
{[%clk 0:00:55.4]} 15... Nxf6 {[%clk 0:02:21.2]} 16. Rhg1 {[%clk 0:00:51.2]}
16... Rde8 {[%clk 0:02:15.4]} 17. f3 {[%clk 0:00:38.7]} 17... Re6 {[%clk
0:02:08.9]} 18. Rd2 {[%clk 0:00:34.4]} 18... Rhe8 {[%clk 0:02:08.4]} 19. Nge2
{[%clk 0:00:26.1]} 19... g5 {[%clk 0:02:07.9]} 20. Kd1 {[%clk 0:00:23]} 20... h5
{[%clk 0:02:03.5]} 21. Na4 {[%clk 0:00:19.3]} 21... Kc7 {[%clk 0:02:02.6]} 22.
Nc5 {[%clk 0:00:19.2]} 22... R6e7 {[%clk 0:02:02.8]} 23. Nd3 {[%clk 0:00:19.3]}
23... Ng8 {[%clk 0:02:01.1]} 24. a4 {[%clk 0:00:17.4]} 24... Nf5 {[%clk
0:02:00]} 25. a5 {[%clk 0:00:14.9]} 25... Ne3+ {[%clk 0:02:00.1]} 26. Kc1 {[%clk
0:00:14.7]} 26... Nc4 {[%clk 0:02:01]} 27. Nc3 {[%clk 0:00:13.2]} 27... Nxa5
{[%clk 0:01:58.3]} 28. b3 {[%clk 0:00:12]} 28... b6 {[%clk 0:01:58.4]} 29. Ne5
{[%clk 0:00:10.4]} 29... Nb7 {[%clk 0:01:57.1]} 30. Kd1 {[%clk 0:00:06.3]} 30...
Nd6 {[%clk 0:01:56.3]} 31. Re2 {[%clk 0:00:06.2]} 31... Nh6 {[%clk 0:01:48.7]}
32. Rge1 {[%clk 0:00:05.6]} 32... Nhf5 {[%clk 0:01:46.1]} 33. Rd2 {[%clk
0:00:04.5]} 33... f6 {[%clk 0:01:45.5]} 34. Nd3 {[%clk 0:00:04.9]} 34... Nxd4
{[%clk 0:01:39.5]} 35. Rxe7+ {[%clk 0:00:04.9]} 35... Rxe7 {[%clk 0:01:40.4]}
36. Nb4 {[%clk 0:00:05.4]} 36... N6f5 {[%clk 0:01:40.6]} 37. Nxa6+ {[%clk
0:00:04.9]} 37... Kb7 {[%clk 0:01:40.6]} 38. Nb4 {[%clk 0:00:05.3]} 38... Ne6
{[%clk 0:01:34.9]} 39. Ne2 {[%clk 0:00:04.4]} 39... Ne3+ {[%clk 0:01:34.7]} 40.
Ke1 {[%clk 0:00:03.5]} 40... Nxg2+ {[%clk 0:01:35.6]} 41. Kf2 {[%clk 0:00:04]}
41... Ngf4 {[%clk 0:01:36.5]} 42. Nxf4 {[%clk 0:00:04]} 42... Nxf4 {[%clk
0:01:36.5]} 43. Nd3 {[%clk 0:00:02.6]} 43... Nxd3+ {[%clk 0:01:36.3]} 44. Rxd3
{[%clk 0:00:03.5]} 44... b5 {[%clk 0:01:35.8]} 45. b4 {[%clk 0:00:02.5]} 45...
Kb6 {[%clk 0:01:36]} 46. c3 {[%clk 0:00:02.8]} 46... h4 {[%clk 0:01:33.1]} 47.
h3 {[%clk 0:00:02.3]} 47... Ra7 {[%clk 0:01:32.5]} 48. f4 {[%clk 0:00:02.5]}
48... Ra2+ {[%clk 0:01:30.6]} 49. Kf3 {[%clk 0:00:02.8]} 49... Rh2 {[%clk
0:01:30.5]} 50. Kg4 {[%clk 0:00:03.3]} 50... Rg2+ {[%clk 0:01:30.3]} 51. Kf5
{[%clk 0:00:03.2]} 51... Rg3 {[%clk 0:01:30.8]} 52. Rd1 {[%clk 0:00:03.1]} 52...
Rxc3 {[%clk 0:01:27.8]} 53. fxg5 {[%clk 0:00:03.5]} 53... fxg5 {[%clk
0:01:28.7]} 54. Kxg5 {[%clk 0:00:02.9]} 54... Rxh3 {[%clk 0:01:28.2]} 55. Rd4
{[%clk 0:00:03]} 55... Rc3 {[%clk 0:01:28]} 56. Rxh4 {[%clk 0:00:02.1]} 56...
Rc4 {[%clk 0:01:28.4]} 57. Rh1 {[%clk 0:00:02.1]} 57... Rxb4 {[%clk 0:01:28.3]}
58. Kf5 {[%clk 0:00:03]} 58... Re4 {[%clk 0:01:28.3]} 0-1